[Event "Early-Titled-Tuesday-Blitz-September-05-2023"]
[Site "Chess.com"]
[Date "2023.09.05"]
[Round "6"]
[White "TimofeevAr"]
[Black "hurricane7791"]
[Result "1-0"]
[WhiteElo "2864"]
[BlackElo "2685"]
[TimeControl "180+1"]
[EndTime "9:05:29 PDT"]
[Termination "TimofeevAr won by checkmate"]

1. c4 {[%clk 0:03:00.9]} 1... c5 {[%clk 0:02:56]} 2. Nf3 {[%clk 0:02:59.9]} 2...
Nf6 {[%clk 0:02:54.1]} 3. Nc3 {[%clk 0:02:59.4]} 3... e6 {[%clk 0:02:53.4]} 4.
e4 {[%clk 0:02:59.2]} 4... Nc6 {[%clk 0:02:51.6]} 5. Be2 {[%clk 0:02:59.1]} 5...
d6 {[%clk 0:02:43.3]} 6. d4 {[%clk 0:02:57.9]} 6... cxd4 {[%clk 0:02:43.4]} 7.
Nxd4 {[%clk 0:02:58.3]} 7... Ne5 {[%clk 0:02:38.3]} 8. O-O {[%clk 0:02:56.1]}
8... a6 {[%clk 0:02:38.2]} 9. f4 {[%clk 0:02:55.2]} 9... Ned7 {[%clk 0:02:37.5]}
10. Bf3 {[%clk 0:02:54.3]} 10... Qc7 {[%clk 0:02:36]} 11. Be3 {[%clk 0:02:52.9]}
11... Be7 {[%clk 0:02:35.4]} 12. Rc1 {[%clk 0:02:52.3]} 12... O-O {[%clk
0:02:35]} 13. g4 {[%clk 0:02:51.3]} 13... Nb6 {[%clk 0:02:23.2]} 14. b3 {[%clk
0:02:48.8]} 14... g6 {[%clk 0:02:06.2]} 15. g5 {[%clk 0:02:45.1]} 15... Nfd7
{[%clk 0:02:06.1]} 16. Bg2 {[%clk 0:02:44.5]} 16... Re8 {[%clk 0:02:05.2]} 17.
Kh1 {[%clk 0:02:35.8]} 17... Bf8 {[%clk 0:02:05.2]} 18. Nde2 {[%clk 0:02:30.5]}
18... Nc5 {[%clk 0:01:59.6]} 19. Qd2 {[%clk 0:02:28.6]} 19... Bd7 {[%clk
0:01:59.7]} 20. f5 {[%clk 0:02:28.4]} 20... exf5 {[%clk 0:01:58.4]} 21. exf5
{[%clk 0:02:28.6]} 21... Bc6 {[%clk 0:01:58.6]} 22. Nf4 {[%clk 0:02:19.3]} 22...
Re5 {[%clk 0:01:45.5]} 23. Ncd5 {[%clk 0:02:04.5]} 23... Nxd5 {[%clk 0:01:40]}
24. Nxd5 {[%clk 0:02:04.5]} 24... Bxd5 {[%clk 0:01:19.7]} 25. Bxd5 {[%clk
0:02:02.9]} 25... Ne4 {[%clk 0:01:09]} 26. Qg2 {[%clk 0:01:45.1]} 26... gxf5
{[%clk 0:01:08.1]} 27. Bd4 {[%clk 0:01:44.6]} 27... Rxd5 {[%clk 0:01:03.5]} 28.
cxd5 {[%clk 0:01:44]} 28... Qd7 {[%clk 0:01:04]} 29. Qf3 {[%clk 0:01:40.1]}
29... Bg7 {[%clk 0:00:55.8]} 30. Bxg7 {[%clk 0:01:36.3]} 30... Kxg7 {[%clk
0:00:56.7]} 31. Qxf5 {[%clk 0:01:36.3]} 31... Qxf5 {[%clk 0:00:57.6]} 32. Rxf5
{[%clk 0:01:35.6]} 32... Kg6 {[%clk 0:00:51.3]} 33. Rf4 {[%clk 0:01:13.4]} 33...
Re8 {[%clk 0:00:50.3]} 34. Rc7 {[%clk 0:01:06.8]} 34... Nxg5 {[%clk 0:00:24.2]}
35. h4 {[%clk 0:01:05.8]} 35... Re1+ {[%clk 0:00:24.2]} 36. Kg2 {[%clk
0:01:05.3]} 36... Ne4 {[%clk 0:00:24.1]} 37. Rcxf7 {[%clk 0:00:51.9]} 37... Nc5
{[%clk 0:00:16.8]} 38. R4f6+ {[%clk 0:00:49.7]} 38... Kh5 {[%clk 0:00:16.4]} 39.
Rxh7+ {[%clk 0:00:49.5]} 39... Kg4 {[%clk 0:00:17.3]} 40. Rg7+ {[%clk
0:00:48.9]} 40... Kxh4 {[%clk 0:00:17.6]} 41. Rh6# {[%clk 0:00:48.5]} 1-0

[Event "Early-Titled-Tuesday-Blitz-September-05-2023"]
[Site "Chess.com"]
[Date "2023.09.05"]
[Round "6"]
[White "BlitzWizard04"]
[Black "Bugcrusher"]
[Result "1-0"]
[WhiteElo "2608"]
[BlackElo "2322"]
[TimeControl "180+1"]
[EndTime "9:05:30 PDT"]
[Termination "BlitzWizard04 won by resignation"]

1. e4 {[%clk 0:03:00.6]} 1... e6 {[%clk 0:02:58.7]} 2. d4 {[%clk 0:02:59.6]}
2... d5 {[%clk 0:02:58]} 3. Nc3 {[%clk 0:02:59.6]} 3... Bb4 {[%clk 0:02:57.5]}
4. exd5 {[%clk 0:02:59.4]} 4... exd5 {[%clk 0:02:50]} 5. Bd3 {[%clk 0:02:59.9]}
5... Nc6 {[%clk 0:02:48.6]} 6. a3 {[%clk 0:02:59.5]} 6... Bxc3+ {[%clk
0:02:47.3]} 7. bxc3 {[%clk 0:02:59.3]} 7... Nge7 {[%clk 0:02:45.6]} 8. Qh5
{[%clk 0:02:58]} 8... g6 {[%clk 0:02:41.9]} 9. Qh4 {[%clk 0:02:58.5]} 9... Bf5
{[%clk 0:02:38]} 10. Nf3 {[%clk 0:02:56.5]} 10... Qd7 {[%clk 0:02:35.3]} 11. a4
{[%clk 0:02:45.3]} 11... O-O-O {[%clk 0:02:30.6]} 12. Bg5 {[%clk 0:02:39]} 12...
Rde8 {[%clk 0:02:03.2]} 13. O-O {[%clk 0:02:29]} 13... Bxd3 {[%clk 0:01:47.2]}
14. cxd3 {[%clk 0:02:17.2]} 14... Nf5 {[%clk 0:01:46.6]} 15. Qf4 {[%clk
0:02:11.4]} 15... h6 {[%clk 0:01:43.4]} 16. Bf6 {[%clk 0:02:09.1]} 16... g5
{[%clk 0:01:42.7]} 17. Qd2 {[%clk 0:02:07.2]} 17... Rhg8 {[%clk 0:01:35.4]} 18.
Ne5 {[%clk 0:02:07.1]} 18... Nxe5 {[%clk 0:01:34.8]} 19. dxe5 {[%clk 0:02:07.3]}
19... g4 {[%clk 0:01:29.1]} 20. d4 {[%clk 0:02:06.9]} 20... h5 {[%clk
0:01:28.3]} 21. f3 {[%clk 0:02:05.1]} 21... g3 {[%clk 0:01:25.8]} 22. h3 {[%clk
0:02:02]} 22... Re6 {[%clk 0:01:23.4]} 23. Rab1 {[%clk 0:02:00.8]} 23... Rc6
{[%clk 0:01:23.1]} 24. a5 {[%clk 0:01:46.9]} 24... Rc4 {[%clk 0:01:21]} 25. a6
{[%clk 0:01:46.8]} 25... b6 {[%clk 0:01:21]} 26. Rb4 {[%clk 0:01:41.2]} 26...
Rxb4 {[%clk 0:01:20.1]} 27. cxb4 {[%clk 0:01:42.1]} 27... Ne7 {[%clk 0:01:02.8]}
28. Rc1 {[%clk 0:01:24.9]} 28... Nc6 {[%clk 0:00:57.7]} 29. Qc3 {[%clk
0:01:13.8]} 29... Nb8 {[%clk 0:00:54]} 30. Qd3 {[%clk 0:01:13.5]} 30... Qa4
{[%clk 0:00:50]} 31. Qh7 {[%clk 0:01:08.2]} 31... Re8 {[%clk 0:00:46.3]} 32.
Qxf7 {[%clk 0:01:06.6]} 32... Nxa6 {[%clk 0:00:46.7]} 33. e6 {[%clk 0:00:51.8]}
33... Qb5 {[%clk 0:00:38]} 34. Be5 {[%clk 0:00:50.1]} 34... Kb8 {[%clk
0:00:26.6]} 35. Bxc7+ {[%clk 0:00:39.7]} 35... Ka8 {[%clk 0:00:26.9]} 36. Bxg3
{[%clk 0:00:39.9]} 36... Nxb4 {[%clk 0:00:24.1]} 37. Qd7 {[%clk 0:00:36.3]}
37... a6 {[%clk 0:00:20.6]} 38. Rc8+ {[%clk 0:00:34.9]} 1-0

[Event "Early-Titled-Tuesday-Blitz-September-05-2023"]
[Site "Chess.com"]
[Date "2023.09.05"]
[Round "6"]
[White "koncheto"]
[Black "jk13"]
[Result "1-0"]
[WhiteElo "2543"]
[BlackElo "2669"]
[TimeControl "180+1"]
[EndTime "9:05:35 PDT"]
[Termination "koncheto won by resignation"]

1. e4 {[%clk 0:02:55.9]} 1... e5 {[%clk 0:02:59]} 2. Nf3 {[%clk 0:02:53.3]} 2...
Nc6 {[%clk 0:02:59.7]} 3. Bc4 {[%clk 0:02:53]} 3... Bc5 {[%clk 0:02:59.5]} 4. c3
{[%clk 0:02:52.8]} 4... Nf6 {[%clk 0:03:00]} 5. d3 {[%clk 0:02:53.1]} 5... O-O
{[%clk 0:02:59.9]} 6. O-O {[%clk 0:02:53.7]} 6... d5 {[%clk 0:03:00.5]} 7. exd5
{[%clk 0:02:53.6]} 7... Nxd5 {[%clk 0:03:01.4]} 8. h3 {[%clk 0:02:54.2]} 8...
Nb6 {[%clk 0:02:59.4]} 9. Bb5 {[%clk 0:02:54.3]} 9... f6 {[%clk 0:02:56.6]} 10.
Re1 {[%clk 0:02:46.3]} 10... Kh8 {[%clk 0:02:52.7]} 11. Nbd2 {[%clk 0:02:41.3]}
11... Bd7 {[%clk 0:02:38.7]} 12. Nc4 {[%clk 0:02:30.3]} 12... a6 {[%clk
0:02:33.3]} 13. Nxb6 {[%clk 0:02:25.4]} 13... axb5 {[%clk 0:02:32.3]} 14. Nxa8
{[%clk 0:02:25.1]} 14... Qxa8 {[%clk 0:02:31.6]} 15. d4 {[%clk 0:02:11.6]} 15...
exd4 {[%clk 0:02:28.5]} 16. cxd4 {[%clk 0:02:07.7]} 16... Bd6 {[%clk 0:02:28.5]}
17. d5 {[%clk 0:02:00.1]} 17... Nb4 {[%clk 0:02:13.6]} 18. a3 {[%clk 0:01:57.2]}
18... b6 {[%clk 0:02:13.5]} 19. Bf4 {[%clk 0:01:31.3]} 19... Bxf4 {[%clk
0:02:02.8]} 20. axb4 {[%clk 0:01:30.7]} 20... Qc8 {[%clk 0:01:29.6]} 21. Qd4
{[%clk 0:01:25.5]} 21... Bd6 {[%clk 0:01:27.7]} 22. Rac1 {[%clk 0:01:08.2]}
22... Qa8 {[%clk 0:01:25.2]} 23. Nd2 {[%clk 0:01:02.2]} 23... Qa2 {[%clk
0:01:14.8]} 24. Ra1 {[%clk 0:00:48.2]} 24... Be5 {[%clk 0:01:13.6]} 25. Qxe5
{[%clk 0:00:21.6]} 25... Qxa1 {[%clk 0:01:10.7]} 26. Qe7 {[%clk 0:00:21.9]}
26... Qa8 {[%clk 0:01:01.5]} 27. Qxd7 {[%clk 0:00:21.8]} 27... Rd8 {[%clk
0:01:00.6]} 28. Qxc7 {[%clk 0:00:21.1]} 28... Qxd5 {[%clk 0:01:01.2]} 29. Nf3
{[%clk 0:00:18.6]} 29... h6 {[%clk 0:01:00.7]} 30. Qxb6 {[%clk 0:00:18.4]} 30...
Rd6 {[%clk 0:00:55.2]} 31. Qe3 {[%clk 0:00:15.8]} 31... Qc4 {[%clk 0:00:52.3]}
32. Qe8+ {[%clk 0:00:15.2]} 32... Kh7 {[%clk 0:00:52.7]} 33. Qe4+ {[%clk
0:00:15.9]} 33... Qxe4 {[%clk 0:00:53.1]} 34. Rxe4 {[%clk 0:00:16.8]} 34... Rd1+
{[%clk 0:00:53.6]} 35. Kh2 {[%clk 0:00:16.7]} 35... Rb1 {[%clk 0:00:54.5]} 36.
Re2 {[%clk 0:00:16.3]} 36... g5 {[%clk 0:00:54.3]} 37. Nd4 {[%clk 0:00:16.4]}
37... Kg6 {[%clk 0:00:54.2]} 38. Nxb5 {[%clk 0:00:16.7]} 38... Rd1 {[%clk
0:00:54]} 39. Nc3 {[%clk 0:00:16.8]} 39... Rd4 {[%clk 0:00:54.6]} 40. b5 {[%clk
0:00:17]} 40... Rb4 {[%clk 0:00:55.3]} 41. g4 {[%clk 0:00:09.2]} 41... h5 {[%clk
0:00:55.5]} 42. f3 {[%clk 0:00:09.2]} 42... h4 {[%clk 0:00:55.9]} 43. Kg2 {[%clk
0:00:09.6]} 43... Rb3 {[%clk 0:00:56.3]} 44. Kf2 {[%clk 0:00:09.9]} 44... Kg7
{[%clk 0:00:56.3]} 45. Ke3 {[%clk 0:00:10.5]} 45... Kf7 {[%clk 0:00:56.9]} 46.
Kd3 {[%clk 0:00:11]} 46... Rb4 {[%clk 0:00:57.8]} 47. Kc2 {[%clk 0:00:09.4]}
47... Kf8 {[%clk 0:00:57.3]} 48. Re4 {[%clk 0:00:09.6]} 1-0

[Event "Early-Titled-Tuesday-Blitz-September-05-2023"]
[Site "Chess.com"]
[Date "2023.09.05"]
[Round "6"]
[White "Taran2004"]
[Black "LUISMIGUELOV"]
[Result "1-0"]
[WhiteElo "2363"]
[BlackElo "2086"]
[TimeControl "180+1"]
[EndTime "9:05:38 PDT"]
[Termination "Taran2004 won on time"]

1. e4 {[%clk 0:03:00.9]} 1... c6 {[%clk 0:02:58.9]} 2. d4 {[%clk 0:02:57.9]}
2... d5 {[%clk 0:02:58.6]} 3. e5 {[%clk 0:02:58.4]} 3... c5 {[%clk 0:02:57.6]}
4. dxc5 {[%clk 0:02:59.3]} 4... Nc6 {[%clk 0:02:56.8]} 5. Nf3 {[%clk 0:02:56.1]}
5... Bg4 {[%clk 0:02:56.2]} 6. Bb5 {[%clk 0:02:50.2]} 6... e6 {[%clk 0:02:53.4]}
7. a3 {[%clk 0:02:44]} 7... Bxc5 {[%clk 0:02:51.6]} 8. b4 {[%clk 0:02:44.1]}
8... Bb6 {[%clk 0:02:46.3]} 9. Bb2 {[%clk 0:02:44.3]} 9... Ne7 {[%clk
0:02:41.6]} 10. h3 {[%clk 0:02:40.2]} 10... Bxf3 {[%clk 0:02:29.5]} 11. Qxf3
{[%clk 0:02:41.1]} 11... a6 {[%clk 0:02:27.7]} 12. Bd3 {[%clk 0:02:37.6]} 12...
Ng6 {[%clk 0:02:27.4]} 13. Qe2 {[%clk 0:02:31.8]} 13... Qc7 {[%clk 0:02:20.1]}
14. Bxg6 {[%clk 0:02:27.6]} 14... hxg6 {[%clk 0:02:18.8]} 15. O-O {[%clk
0:02:26.7]} 15... Rc8 {[%clk 0:02:16.2]} 16. Nd2 {[%clk 0:02:16.2]} 16... Nd4
{[%clk 0:02:11.8]} 17. Bxd4 {[%clk 0:02:12.4]} 17... Bxd4 {[%clk 0:02:10.3]} 18.
Rac1 {[%clk 0:02:12.9]} 18... Qxe5 {[%clk 0:02:05.6]} 19. Qf3 {[%clk 0:02:12.8]}
19... Bb2 {[%clk 0:01:57.9]} 20. Rce1 {[%clk 0:02:10.7]} 20... Qf6 {[%clk
0:01:56.6]} 21. Qxd5 {[%clk 0:02:07.6]} 21... O-O {[%clk 0:01:47.7]} 22. Qxb7
{[%clk 0:02:07.1]} 22... Rxc2 {[%clk 0:01:47.2]} 23. Ne4 {[%clk 0:02:05.1]}
23... Qh4 {[%clk 0:01:28.2]} 24. Qxa6 {[%clk 0:02:01.3]} 24... Bd4 {[%clk
0:01:18.4]} 25. Qd3 {[%clk 0:01:48.8]} 25... Bxf2+ {[%clk 0:00:45.7]} 26. Rxf2
{[%clk 0:01:45.7]} 26... Rxf2 {[%clk 0:00:44.4]} 27. Nxf2 {[%clk 0:01:46.4]}
27... Rc8 {[%clk 0:00:41.9]} 28. b5 {[%clk 0:01:39.3]} 28... Qa4 {[%clk
0:00:32.5]} 29. Rb1 {[%clk 0:01:34.9]} 29... Rb8 {[%clk 0:00:30.4]} 30. b6
{[%clk 0:01:28.6]} 30... Qa5 {[%clk 0:00:30]} 31. b7 {[%clk 0:01:26.6]} 31...
Qc7 {[%clk 0:00:23.1]} 32. Qf3 {[%clk 0:01:20.5]} 32... e5 {[%clk 0:00:20.1]}
33. a4 {[%clk 0:01:18.9]} 33... f5 {[%clk 0:00:19.1]} 34. Qd5+ {[%clk
0:01:17.2]} 34... Kh7 {[%clk 0:00:18.1]} 35. a5 {[%clk 0:01:17.5]} 35... e4
{[%clk 0:00:16]} 36. a6 {[%clk 0:01:16.6]} 36... e3 {[%clk 0:00:14.7]} 37. Nd3
{[%clk 0:01:08.5]} 37... e2 {[%clk 0:00:04.1]} 38. a7 {[%clk 0:01:00.7]} 38...
Rxb7 {[%clk 0:00:03.1]} 39. Qxb7 {[%clk 0:00:57.5]} 39... Qc3 {[%clk 0:00:01.3]}
40. a8=Q {[%clk 0:00:52.4]} 40... Qxd3 {[%clk 0:00:01.2]} 41. Qe8 {[%clk
0:00:45.1]} 1-0

[Event "Early-Titled-Tuesday-Blitz-September-05-2023"]
[Site "Chess.com"]
[Date "2023.09.05"]
[Round "6"]
[White "abelmat"]
[Black "Witty_Alien"]
[Result "1-0"]
[WhiteElo "1956"]
[BlackElo "2173"]
[TimeControl "180+1"]
[EndTime "9:05:39 PDT"]
[Termination "abelmat won on time"]

1. d4 {[%clk 0:03:00.8]} 1... e5 {[%clk 0:02:58.6]} 2. c3 {[%clk 0:02:57.8]}
2... e4 {[%clk 0:02:58.6]} 3. c4 {[%clk 0:02:50.2]} 3... c6 {[%clk 0:02:54.4]}
4. Nc3 {[%clk 0:02:42.9]} 4... d5 {[%clk 0:02:54.5]} 5. e3 {[%clk 0:02:38.9]}
5... Nf6 {[%clk 0:02:52.3]} 6. Nge2 {[%clk 0:02:37.8]} 6... Bd6 {[%clk
0:02:51.2]} 7. c5 {[%clk 0:02:31.7]} 7... Bc7 {[%clk 0:02:47.8]} 8. Bd2 {[%clk
0:02:30.6]} 8... Ng4 {[%clk 0:02:36.9]} 9. Ng3 {[%clk 0:02:16.7]} 9... h5 {[%clk
0:02:25.4]} 10. Be2 {[%clk 0:02:08.9]} 10... Nxh2 {[%clk 0:01:46.3]} 11. Nxh5
{[%clk 0:01:29.5]} 11... g6 {[%clk 0:01:32.8]} 12. g3 {[%clk 0:00:37.6]} 12...
Nf3+ {[%clk 0:00:22]} 13. Bxf3 {[%clk 0:00:24.1]} 13... exf3 {[%clk 0:00:22.3]}
14. Ng7+ {[%clk 0:00:15.5]} 14... Ke7 {[%clk 0:00:22.5]} 15. Qxf3 {[%clk
0:00:13.1]} 15... Bg4 {[%clk 0:00:16.5]} 16. Qg2 {[%clk 0:00:06.3]} 16... Rxh1+
{[%clk 0:00:11.4]} 17. Qxh1 {[%clk 0:00:06.2]} 17... Kd7 {[%clk 0:00:02.1]} 18.
Qh6 {[%clk 0:00:04.8]} 18... f5 {[%clk 0:00:01.2]} 19. Qf4 {[%clk 0:00:04.4]}
1-0

[Event "Early-Titled-Tuesday-Blitz-September-05-2023"]
[Site "Chess.com"]
[Date "2023.09.05"]
[Round "6"]
[White "HeinichessPY"]
[Black "Manukyan_Artak"]
[Result "0-1"]
[WhiteElo "2220"]
[BlackElo "2454"]
[TimeControl "180+1"]
[EndTime "9:05:43 PDT"]
[Termination "Manukyan_Artak won on time"]

1. e4 {[%clk 0:02:38.5]} 1... c6 {[%clk 0:02:59.4]} 2. d4 {[%clk 0:02:38]} 2...
d5 {[%clk 0:03:00.3]} 3. exd5 {[%clk 0:02:38.9]} 3... cxd5 {[%clk 0:03:00.5]} 4.
Bd3 {[%clk 0:02:39.5]} 4... Nc6 {[%clk 0:02:59.3]} 5. c3 {[%clk 0:02:39.6]} 5...
e5 {[%clk 0:02:59.8]} 6. dxe5 {[%clk 0:02:26.3]} 6... Nxe5 {[%clk 0:03:00.7]} 7.
Be2 {[%clk 0:02:15.5]} 7... Nf6 {[%clk 0:02:57.6]} 8. Bf4 {[%clk 0:02:15.5]}
8... Bd6 {[%clk 0:02:51.6]} 9. Bxe5 {[%clk 0:02:08.4]} 9... Bxe5 {[%clk
0:02:51.6]} 10. Nf3 {[%clk 0:02:09.1]} 10... Bc7 {[%clk 0:02:51.6]} 11. O-O
{[%clk 0:02:08.7]} 11... O-O {[%clk 0:02:50.1]} 12. Nbd2 {[%clk 0:02:06.3]}
12... Re8 {[%clk 0:02:45.5]} 13. Re1 {[%clk 0:02:06.1]} 13... Bf5 {[%clk
0:02:38.3]} 14. Nf1 {[%clk 0:02:04.3]} 14... Bb6 {[%clk 0:02:31]} 15. Ng3 {[%clk
0:02:03.1]} 15... Be6 {[%clk 0:02:30.3]} 16. Nd4 {[%clk 0:02:03.2]} 16... Qc7
{[%clk 0:02:26.3]} 17. Bb5 {[%clk 0:01:52.1]} 17... Rf8 {[%clk 0:02:11.3]} 18.
Nh5 {[%clk 0:01:44.3]} 18... Bxd4 {[%clk 0:01:53.1]} 19. cxd4 {[%clk 0:01:34.9]}
19... Nxh5 {[%clk 0:01:50.6]} 20. Qxh5 {[%clk 0:01:34.1]} 20... Qb6 {[%clk
0:01:51.1]} 21. Bd3 {[%clk 0:01:28.1]} 21... g6 {[%clk 0:01:45.7]} 22. Qh6
{[%clk 0:01:22.2]} 22... Qxd4 {[%clk 0:01:41.6]} 23. Rad1 {[%clk 0:01:10.4]}
23... Qxb2 {[%clk 0:01:23.7]} 24. h4 {[%clk 0:00:46.3]} 24... Rae8 {[%clk
0:01:14.3]} 25. h5 {[%clk 0:00:46.2]} 25... Qg7 {[%clk 0:01:07.4]} 26. Qe3
{[%clk 0:00:32.9]} 26... b6 {[%clk 0:01:00.4]} 27. h6 {[%clk 0:00:29.5]} 27...
Qf6 {[%clk 0:00:56.5]} 28. Bb5 {[%clk 0:00:29.2]} 28... Bd7 {[%clk 0:00:48.6]}
29. Qxe8 {[%clk 0:00:15.7]} 29... Rxe8 {[%clk 0:00:46.4]} 30. Bxd7 {[%clk
0:00:13.1]} 30... Re4 {[%clk 0:00:34.4]} 31. Rxe4 {[%clk 0:00:08.7]} 31... dxe4
{[%clk 0:00:35.3]} 32. Bc6 {[%clk 0:00:04.4]} 32... e3 {[%clk 0:00:30.7]} 33.
fxe3 {[%clk 0:00:02.6]} 33... Qg5 {[%clk 0:00:31]} 0-1

[Event "Early-Titled-Tuesday-Blitz-September-05-2023"]
[Site "Chess.com"]
[Date "2023.09.05"]
[Round "6"]
[White "PawnEatingZombie"]
[Black "cottage_cheese"]
[Result "0-1"]
[WhiteElo "2048"]
[BlackElo "2318"]
[TimeControl "180+1"]
[EndTime "9:05:43 PDT"]
[Termination "cottage_cheese won by resignation"]

1. e4 {[%clk 0:03:00.9]} 1... e5 {[%clk 0:02:59.6]} 2. Nf3 {[%clk 0:03:00.4]}
2... Nc6 {[%clk 0:02:59.8]} 3. d4 {[%clk 0:03:00.6]} 3... exd4 {[%clk
0:02:59.8]} 4. Nxd4 {[%clk 0:03:01.5]} 4... Bc5 {[%clk 0:02:59.7]} 5. Be3 {[%clk
0:02:59.4]} 5... Qf6 {[%clk 0:02:53.3]} 6. Nb5 {[%clk 0:02:58.9]} 6... Bxe3
{[%clk 0:02:49]} 7. fxe3 {[%clk 0:02:57.4]} 7... Qh4+ {[%clk 0:02:49.1]} 8. Kd2
{[%clk 0:02:32.9]} 8... Qd8 {[%clk 0:02:50]} 9. N1c3 {[%clk 0:02:18]} 9... a6
{[%clk 0:02:41.8]} 10. Nd4 {[%clk 0:02:17.6]} 10... Nf6 {[%clk 0:02:39.4]} 11.
a4 {[%clk 0:02:04.5]} 11... O-O {[%clk 0:02:35.8]} 12. Bc4 {[%clk 0:02:04]}
12... Qe7 {[%clk 0:02:23.3]} 13. Qf3 {[%clk 0:02:02.9]} 13... Ne5 {[%clk
0:02:20.4]} 14. Qe2 {[%clk 0:02:02.4]} 14... Nxc4+ {[%clk 0:02:14.2]} 15. Qxc4
{[%clk 0:02:02.2]} 15... Nxe4+ {[%clk 0:02:12.6]} 16. Nxe4 {[%clk 0:02:02.2]}
16... Qxe4 {[%clk 0:02:13.4]} 17. Qxc7 {[%clk 0:01:56.4]} 17... d5 {[%clk
0:01:26.7]} 18. Rae1 {[%clk 0:01:38.4]} 18... Bf5 {[%clk 0:01:00.1]} 19. Qf4
{[%clk 0:00:50.1]} 19... Qxg2+ {[%clk 0:00:46.3]} 20. Kc1 {[%clk 0:00:50.1]}
20... Bg6 {[%clk 0:00:46.2]} 21. Rhg1 {[%clk 0:00:43.9]} 21... Qe4 {[%clk
0:00:41.8]} 22. Qxe4 {[%clk 0:00:40.5]} 22... Bxe4 {[%clk 0:00:42.7]} 23. h4
{[%clk 0:00:32.4]} 23... Rac8 {[%clk 0:00:37.3]} 24. c3 {[%clk 0:00:32.1]} 24...
Rfd8 {[%clk 0:00:35.9]} 25. Kd2 {[%clk 0:00:31.7]} 25... Rd6 {[%clk 0:00:35.1]}
26. Ref1 {[%clk 0:00:29.9]} 26... Rh6 {[%clk 0:00:25.8]} 27. Rf4 {[%clk
0:00:29.4]} 27... Rb6 {[%clk 0:00:21.6]} 28. b4 {[%clk 0:00:28.6]} 28... a5
{[%clk 0:00:19.3]} 29. b5 {[%clk 0:00:27.8]} 29... Rg6 {[%clk 0:00:15.8]} 30.
Rxg6 {[%clk 0:00:24.6]} 30... hxg6 {[%clk 0:00:16.2]} 31. Nb3 {[%clk 0:00:22.1]}
31... b6 {[%clk 0:00:15.3]} 32. Nd4 {[%clk 0:00:21.9]} 32... Rc4 {[%clk
0:00:15]} 0-1

[Event "Early-Titled-Tuesday-Blitz-September-05-2023"]
[Site "Chess.com"]
[Date "2023.09.05"]
[Round "6"]
[White "whiteglovethief"]
[Black "amanjazu"]
[Result "1-0"]
[WhiteElo "2522"]
[BlackElo "2360"]
[TimeControl "180+1"]
[EndTime "9:05:44 PDT"]
[Termination "whiteglovethief won by resignation"]

1. d4 {[%clk 0:03:00.9]} 1... f5 {[%clk 0:02:58.9]} 2. g3 {[%clk 0:03:00]} 2...
Nf6 {[%clk 0:02:59]} 3. Bg2 {[%clk 0:02:56]} 3... g6 {[%clk 0:02:58.3]} 4. Nh3
{[%clk 0:02:53.8]} 4... Bg7 {[%clk 0:02:58.4]} 5. Nf4 {[%clk 0:02:54.4]} 5...
O-O {[%clk 0:02:59.3]} 6. h4 {[%clk 0:02:54.9]} 6... Bh8 {[%clk 0:02:47.3]} 7.
h5 {[%clk 0:02:51.6]} 7... g5 {[%clk 0:02:47.6]} 8. Nd3 {[%clk 0:02:50.5]} 8...
h6 {[%clk 0:02:46.5]} 9. f4 {[%clk 0:02:50.6]} 9... g4 {[%clk 0:02:40.3]} 10.
Ne5 {[%clk 0:02:47.1]} 10... Bg7 {[%clk 0:02:39]} 11. c4 {[%clk 0:02:38.9]}
11... d6 {[%clk 0:02:38.4]} 12. Ng6 {[%clk 0:02:35.6]} 12... Re8 {[%clk
0:02:36]} 13. Nc3 {[%clk 0:02:35.7]} 13... c6 {[%clk 0:02:31.1]} 14. e4 {[%clk
0:02:25.2]} 14... fxe4 {[%clk 0:02:28.7]} 15. Nxe4 {[%clk 0:02:19.2]} 15... Bf5
{[%clk 0:02:28]} 16. Qe2 {[%clk 0:02:16.6]} 16... Nbd7 {[%clk 0:02:12.8]} 17.
Bd2 {[%clk 0:02:04.2]} 17... Qb6 {[%clk 0:01:48]} 18. Bc3 {[%clk 0:02:01.8]}
18... e5 {[%clk 0:01:46.8]} 19. c5 {[%clk 0:01:55.3]} 19... dxc5 {[%clk
0:01:31.6]} 20. dxe5 {[%clk 0:01:51]} 20... Nd5 {[%clk 0:01:26]} 21. Nd6 {[%clk
0:01:45.8]} 21... Nxc3 {[%clk 0:01:23.1]} 22. bxc3 {[%clk 0:01:46.7]} 22... Bxg6
{[%clk 0:01:19.3]} 23. hxg6 {[%clk 0:01:34.8]} 23... Nxe5 {[%clk 0:01:18.5]} 24.
Nxe8 {[%clk 0:01:34.3]} 24... Rxe8 {[%clk 0:01:17.1]} 25. fxe5 {[%clk
0:01:34.4]} 25... Rxe5 {[%clk 0:01:17]} 26. Be4 {[%clk 0:01:32.1]} 26... c4
{[%clk 0:00:29.7]} 27. Qxc4+ {[%clk 0:00:51.6]} 27... Kh8 {[%clk 0:00:29]} 28.
O-O-O {[%clk 0:00:50.6]} 28... Qe3+ {[%clk 0:00:22.9]} 29. Kb2 {[%clk
0:00:44.2]} 29... Rb5+ {[%clk 0:00:17.9]} 30. Kc2 {[%clk 0:00:28.9]} 30... Qf2+
{[%clk 0:00:12.8]} 31. Rd2 {[%clk 0:00:29]} 31... Rb2+ {[%clk 0:00:12]} 32. Kxb2
{[%clk 0:00:29.1]} 32... Qxd2+ {[%clk 0:00:12.9]} 33. Kb3 {[%clk 0:00:29]} 33...
b5 {[%clk 0:00:10]} 34. Qd3 {[%clk 0:00:27.8]} 1-0